fUSD/lending_fUSD_20251201
["ID","MTS","AMOUNT","RATE_DAILY","PERIOD"]
[395312049,1764609091372,-500.0,0.00032877,60]
[395312050,1764609091382,-500.0,0.00032877,60]
[395312051,1764609091391,-500.0,0.00032877,60]
[395312052,1764609091400,-500.0,0.00032877,60]
[395312053,1764609091410,-500.0,0.00032877,60]
[395312054,1764609091419,-500.0,0.00032877,60]
[395312055,1764609091429,-500.0,0.00032877,60]
[395312056,1764609091438,-336.2445852,0.00032877,60]
[395312057,1764609091447,-500.0,0.00032877,7]
[395312058,1764609091457,-500.0,0.00032877,7]
[395312059,1764609091466,-500.0,0.00032877,7]
[395312060,1764609091475,-500.0,0.00032877,7]
[395312061,1764609091485,-500.0,0.00032877,7]
[395312062,1764609091494,-500.0,0.00032877,7]
[395312063,1764609091503,-500.0,0.00032877,7]
[395312064,1764609091512,-500.0,0.00032877,7]
[395312065,1764609091522,-500.0,0.00032877,7]
[395312066,1764609091531,-500.0,0.00032877,7]
[395312067,1764609091540,-500.0,0.00032877,7]
[395312068,1764609091550,-500.0,0.00032877,7]
[395312069,1764609091559,-500.0,0.00032877,7]
[395312070,1764609091568,-500.0,0.00032877,7]
[395312071,1764609091578,-500.0,0.00032877,7]
[395312072,1764609091588,-500.0,0.00032877,7]
[395312073,1764609091597,-500.0,0.00032877,7]
[395312074,1764609091606,-500.0,0.00032877,7]
[395312075,1764609091615,-500.0,0.00032877,7]
[395312076,1764609091625,-500.0,0.00032877,7]
[395312077,1764609091635,-374.47365234,0.00032877,7]
[395312078,1764609091644,-500.0,0.00032877,7]
[395312079,1764609091654,-500.0,0.00032877,7]
[395312080,1764609091664,-500.0,0.00032877,7]
[395312081,1764609091674,-500.0,0.00032877,7]
[395312082,1764609091684,-500.0,0.00032877,7]
[395312083,1764609091693,-500.0,0.00032877,7]
[395312084,1764609091702,-500.0,0.00032877,7]
[395312085,1764609091711,-500.0,0.00032877,7]
[395312086,1764609091720,-500.0,0.00032877,7]
[395312087,1764609091730,-500.0,0.00032877,7]
[395312088,1764609091739,-500.0,0.00032877,7]
[395312089,1764609091749,-500.0,0.00032877,7]
[395312090,1764609091759,-500.0,0.00032877,7]
[395312091,1764609091768,-500.0,0.00032877,7]
[395312092,1764609091778,-500.0,0.00032877,30]
[395312093,1764609091787,-2000.0,0.00032898,120]
[395312094,1764609091796,-1200.0,0.00032938,7]
[395312095,1764609091805,-150.0,0.00032965,2]
[395312096,1764609091815,-3442.0,0.00032965,2]
[395312097,1764609091824,-1322.0,0.00032965,2]
[395312098,1764609091833,-1000.0,0.00033,12]
[395312099,1764609091842,-168.94929358,0.00033,60]
[395312100,1764609091852,-9993.9,0.00033,14]
[395312101,1764609091861,-165.8,0.00033,30]
[395312102,1764609091870,-486.71,0.00033,14]
[395312103,1764609091880,-51115.3037399,0.00033,2]
[395312104,1764609091889,-1000.0,0.00033,120]
[395312105,1764609091898,-10509.74,0.00033,2]
[395312106,1764609091907,-1631.93,0.00033,14]
[395312107,1764609091916,-1805.27708322,0.00033,2]
[395312108,1764609091925,-152.21104797,0.00033,2]
[395312109,1764609091934,-465.0,0.00033,2]
[395312110,1764609091943,-1200.0,0.00033006,7]
[395312111,1764609091953,-500.0,0.00033014,30]
[395312112,1764609091961,-5599.80727852,0.00033101,2]
[395312113,1764609091971,-5000.0,0.00033101,2]
[395312114,1764609091980,-500.0,0.00033118,7]
[395312115,1764609091989,-1200.0,0.00033121,7]
[395312116,1764609091998,-6240.08532185,0.00033122,2]
[395312117,1764609092008,-500.0,0.00033151,30]
[395312118,1764609092017,-882.97,0.00033165,2]
[395312119,1764609092026,-608.0,0.00033249,7]
[395312120,1764609092038,-500.0,0.00033288,30]
[395312121,1764609092047,-834.40732908,0.00033294,7]
[395312122,1764609092057,-1200.0,0.00033317,7]
[395312123,1764609092066,-500.0,0.00033425,30]
[395312124,1764609092075,-3000.0,0.0003348,14]
[395312125,1764609092085,-1200.86555444,0.000335,2]
[395312126,1764609092094,-152.0,0.00033518,14]
[395312127,1764609092104,-500.0,0.00033562,30]
[395312128,1764609092116,-608.0,0.0003366,7]
[395312129,1764609092125,-1167.67,0.00033698,120]
[395312130,1764609092136,-445.25,0.00033699,2]
[395312131,1764609092146,-500.0,0.00033699,30]
[395312132,1764609092155,-300.0,0.000338,30]
[395312133,1764609092165,-500.0,0.00033836,30]
[395312134,1764609092175,-500.0,0.00033939,60]
[395312135,1764609092184,-481.11077973,0.00033946,2]
[395312136,1764609092194,-398.86540225,0.00033946,2]
[395312137,1764609092204,-500.0,0.00033973,30]
[395312138,1764609092214,-500.0,0.00034,2]
[395312139,1764609092223,-500.0,0.00034,6]
[395312140,1764609092232,-200.0,0.00034,120]
[395312141,1764609092242,-1003.389462,0.00034,120]
[395312142,1764609092251,-324.12327542,0.00034,2]
[395312143,1764609092260,-608.0,0.00034071,7]
[395312144,1764609092271,-500.0,0.0003411,30]
[395312145,1764609092280,-2000.0,0.00034123,120]
[395312146,1764609092293,-152.0,0.00034205,15]
[395312147,1764609092303,-500.0,0.00034247,30]
[395312148,1764609092313,-3000.0,0.00034302,14]
[395312149,1764609092323,-500.0,0.00034321,7]
[395312150,1764609092332,-500.0,0.00034384,30]
[395312151,1764609092342,-500.0,0.00034438,7]
[395312152,1764609092351,-608.0,0.00034482,7]
[395312153,1764609092361,-1715.69654169,0.0003449,2]
[395312154,1764609092371,-2856.5398126,0.000345,60]
[395312155,1764609092380,-870.72,0.000345,30]
[395312156,1764609092391,-1167.67,0.0003452,120]
[395312157,1764609092400,-150.0,0.00034521,2]
[395312158,1764609092409,-150.0,0.00034521,2]
[395312159,1764609092419,-300.0,0.00034521,2]
[395312160,1764609092428,-1104.32,0.00034521,2]
[395312161,1764609092438,-378.75,0.00034521,2]
[395312162,1764609092447,-302.9,0.00034521,2]
[395312163,1764609092457,-150.0,0.00034521,2]
[395312164,1764609092468,-150.0,0.00034521,2]
[395312165,1764609092477,-150.0,0.00034521,2]
[395312166,1764609092486,-2427.53,0.00034521,2]
[395312167,1764609092496,-500.0,0.00034521,30]
[395312168,1764609092506,-500.0,0.00034658,30]
[395312169,1764609092515,-500.0,0.00034795,30]
[395312170,1764609092525,-1631.92,0.000348,14]
[395312171,1764609092534,-500.0,0.00034821,60]
[395312172,1764609092543,-400.0,0.0003487,2]
[395312173,1764609092552,-300.0,0.0003487,2]
[395312174,1764609092561,-57468.80179807,0.0003488,120]
[395312175,1764609092570,-203.0,0.0003488,30]
[395312176,1764609092580,-152.0,0.00034892,16]
[395312177,1764609092590,-608.0,0.00034893,7]
[395312178,1764609092598,-263.94283843,0.000349,120]
[395312179,1764609092607,-500.0,0.00034932,30]
[395312180,1764609092617,-500.0,0.00034951,7]
[395312181,1764609092627,-50000.0,0.00035,25]
[395312182,1764609092638,-50000.0,0.00035,35]
[395312183,1764609092647,-772.0,0.00035,19]
[395312184,1764609092657,-1000.0,0.00035,19]
[395312185,1764609092666,-9993.9,0.00035,14]
[395312186,1764609092675,-526.0,0.00035,2]
[395312187,1764609092684,-188.72,0.00035,2]
[395312188,1764609092694,-10509.74,0.00035,2]
[395312189,1764609092707,-250.0,0.00035,7]
[395312190,1764609092716,-326.9,0.00035,30]
[395312191,1764609092726,-350.0,0.00035,2]
[395312192,1764609092736,-500.0,0.00035069,30]
[395312193,1764609092745,-3000.0,0.00035124,14]
[395312194,1764609092754,-500.0,0.00035174,30]
[395312195,1764609092764,-292.33838955,0.00035206,30]
[395312196,1764609092774,-608.0,0.00035304,7]
[395312197,1764609092783,-498.91187858,0.00035315,2]
[395312198,1764609092793,-1167.67,0.00035342,120]
[395312199,1764609092802,-177.91,0.00035342,2]
[395312200,1764609092812,-2000.0,0.00035348,120]
[395312201,1764609092823,-1200.0,0.00035377,30]
[395312202,1764609092833,-253.94,0.00035445,120]
[395312203,1764609092842,-1603.0,0.00035481,2]
[395312204,1764609092852,-610.0,0.00035481,2]
[395312205,1764609092862,-613.0,0.00035481,2]
[395312206,1764609092872,-1258.0,0.00035481,2]
[395312207,1764609092882,-1194.0,0.00035481,2]
[395312208,1764609092891,-4704.0,0.00035481,2]
[395312209,1764609092900,-1631.92,0.000355,14]
[395312210,1764609092909,-152.0,0.0003558,17]
[395312211,1764609092919,-500.0,0.00035615,120]
[395312212,1764609092928,-500.0,0.00035615,120]
[395312213,1764609092938,-349.68798238,0.00035615,120]
[395312214,1764609092947,-501.1868976,0.00035616,45]
[395312215,1764609092958,-500.0,0.00035616,45]
[395312216,1764609092968,-500.0,0.00035616,2]
[395312217,1764609092978,-500.0,0.00035616,2]
[395312218,1764609092988,-500.0,0.00035616,2]
[395312219,1764609092998,-500.0,0.00035616,2]
[395312220,1764609093007,-512.44343527,0.00035616,2]
[395312221,1764609093018,-500.0,0.00035616,2]
[395312222,1764609093028,-500.0,0.00035616,2]
[395312223,1764609093046,-500.0,0.00035616,2]
[395312224,1764609093056,-500.0,0.00035616,2]
[395312225,1764609093066,-422.73943035,0.00035616,2]
[395312226,1764609093078,-515.09431388,0.00035616,120]
[395312227,1764609093089,-500.0,0.00035616,120]
[395312228,1764609093099,-500.0,0.00035616,120]
[395312229,1764609093109,-500.0,0.00035616,120]
[395312230,1764609093121,-500.0,0.00035616,2]
[395312231,1764609093131,-500.0,0.00035616,2]
[395312232,1764609093141,-500.0,0.00035616,2]
[395312233,1764609093151,-150.0,0.00035616,60]
[395312234,1764609093162,-1122.24,0.00035616,2]
[395312235,1764609093173,-500.0,0.00035665,30]
[395312236,1764609093183,-211.0,0.0003568,2]
[395312237,1764609093193,-507.99536832,0.00035703,60]
[395312238,1764609093204,-608.0,0.00035715,14]
[395312239,1764609093215,-219.16155793,0.00035753,60]
[395312240,1764609093225,-187.13,0.000358,30]
[395312241,1764609093235,-1200.0,0.00035863,30]
[395312242,1764609093245,-781.14106,0.00035888,30]
[395312243,1764609093256,-500.0,0.0003589,3]
[395312244,1764609093265,-199.0,0.0003589,7]
[395312245,1764609093275,-500.0,0.00035899,30]
[395312246,1764609093285,-500.0,0.00035899,30]
[395312247,1764609093294,-500.0,0.00035899,30]
[395312248,1764609093305,-500.0,0.00035899,30]
[395312249,1764609093315,-500.0,0.00035899,30]
[395312250,1764609093326,-500.0,0.00035899,30]
[395312251,1764609093336,-3000.0,0.00035946,14]
[395312252,1764609093347,-642.411,0.00035965,2]
[395312253,1764609093357,-1322.0,0.00035965,2]
[395312254,1764609093370,-50000.0,0.00036,36]
[395312255,1764609093381,-50000.0,0.00036,26]
[395312256,1764609093391,-1098.24,0.00036,30]
[395312257,1764609093402,-231436.34712777,0.00036,2]
[395312258,1764609093414,-486.71,0.00036,14]
[395312259,1764609093424,-200.0,0.00036,120]
[395312260,1764609093434,-150.0,0.00036,2]
[395312261,1764609093444,-151.0,0.00036,31]
[395312262,1764609093455,-151.0,0.00036,31]
[395312263,1764609093467,-151.0,0.00036,31]
[395312264,1764609093478,-151.0,0.00036,31]
[395312265,1764609093488,-151.0,0.00036,31]
[395312266,1764609093499,-151.0,0.00036,31]
[395312267,1764609093510,-151.0,0.00036,31]
[395312268,1764609093521,-151.0,0.00036,31]
[395312269,1764609093531,-151.0,0.00036,31]
[395312270,1764609093542,-244.400296,0.00036,31]
[395312271,1764609093553,-151.0,0.00036,31]
[395312272,1764609093563,-168.0,0.00036,30]
[395312273,1764609093573,-151.0,0.00036,31]
[395312274,1764609093583,-151.0,0.00036,31]
[395312275,1764609093594,-247.94581,0.00036,31]
[395312276,1764609093604,-751.268427,0.00036,31]
[395312277,1764609093614,-751.268427,0.00036,31]
[395312278,1764609093626,-751.268427,0.00036,31]
[395312279,1764609093637,-151.0,0.00036,31]
[395312280,1764609093648,-751.26843,0.00036,31]
[395312281,1764609093658,-151.0,0.00036,31]
[395312282,1764609093669,-151.0,0.00036,31]
[395312283,1764609093679,-341.646177,0.00036,31]
[395312284,1764609093690,-341.646177,0.00036,31]
[395312285,1764609093699,-341.646177,0.00036,31]
[395312286,1764609093716,-341.646179,0.00036,31]
[395312287,1764609093726,-202.141534,0.00036,31]
[395312288,1764609093737,-202.141534,0.00036,31]
[395312289,1764609093747,-851.533212,0.00036,31]
[395312290,1764609093757,-851.533212,0.00036,31]
[395312291,1764609093770,-851.533212,0.00036,31]
[395312292,1764609093782,-851.533211,0.00036,31]
[395312293,1764609093793,-202.141534,0.00036,31]
[395312294,1764609093803,-202.141532,0.00036,31]
[395312295,1764609093813,-151.0,0.00036,31]
[395312296,1764609093823,-151.0,0.00036,31]
[395312297,1764609093833,-278.313763,0.00036,31]
[395312298,1764609093844,-404.345579,0.00036,31]
[395312299,1764609093854,-404.345579,0.00036,31]
[395312300,1764609093865,-151.0,0.00036,31]
[395312301,1764609093878,-404.345579,0.00036,31]
[395312302,1764609093888,-278.313763,0.00036,31]
[395312303,1764609093898,-404.345576,0.00036,31]
[395312304,1764609093908,-278.313763,0.00036,31]
[395312305,1764609093918,-278.313768,0.00036,31]
[395312306,1764609093928,-196.734614,0.00036,31]
[395312307,1764609093939,-196.734614,0.00036,31]
[395312308,1764609093948,-151.0,0.00036,31]
[395312309,1764609093959,-196.734614,0.00036,31]
[395312310,1764609093970,-151.0,0.00036,31]
[395312311,1764609093980,-196.734607,0.00036,31]
[395312312,1764609093990,-151.0,0.00036,31]
[395312313,1764609094000,-151.0,0.00036,31]
[395312314,1764609094011,-259.451639,0.00036,31]
[395312315,1764609094021,-456.142198,0.00036,31]
[395312316,1764609094032,-456.142198,0.00036,31]
[395312317,1764609094045,-456.142198,0.00036,31]
[395312318,1764609094055,-456.142198,0.00036,31]
[395312319,1764609094066,-151.0,0.00036,31]
[395312320,1764609094077,-151.0,0.00036,31]
[395312321,1764609094088,-151.0,0.00036,31]
[395312322,1764609094099,-151.0,0.00036,31]
[395312323,1764609094109,-597.344328,0.00036,31]
[395312324,1764609094122,-597.344328,0.00036,31]
[395312325,1764609094134,-597.344328,0.00036,31]
[395312326,1764609094144,-597.344326,0.00036,31]
[395312327,1764609094154,-151.0,0.00036,31]
[395312328,1764609094164,-686.37941,0.00036,31]
[395312329,1764609094175,-686.37941,0.00036,31]
[395312330,1764609094185,-686.37941,0.00036,31]
[395312331,1764609094195,-686.379405,0.00036,31]
[395312332,1764609094205,-539.713945,0.00036,31]
[395312333,1764609094215,-539.713945,0.00036,31]
[395312334,1764609094225,-539.713945,0.00036,31]
[395312335,1764609094235,-539.713945,0.00036,31]
[395312336,1764609094245,-339.771949,0.00036,31]
[395312337,1764609094255,-339.771949,0.00036,31]
[395312338,1764609094265,-339.771949,0.00036,31]
[395312339,1764609094276,-339.771944,0.00036,31]
[395312340,1764609094286,-210.518258,0.00036,31]
[395312341,1764609094296,-210.518258,0.00036,31]
[395312342,1764609094307,-1876.813556,0.00036,31]
[395312343,1764609094317,-210.518258,0.00036,31]
[395312344,1764609094327,-1876.813556,0.00036,31]
[395312345,1764609094337,-210.51826,0.00036,31]
[395312346,1764609094347,-1876.813556,0.00036,31]
[395312347,1764609094357,-1876.813555,0.00036,31]
[395312348,1764609094367,-151.0,0.00036,31]
[395312349,1764609094378,-151.0,0.00036,31]
[395312350,1764609094388,-151.0,0.00036,31]
[395312351,1764609094399,-759.032236,0.00036,31]
[395312352,1764609094409,-151.0,0.00036,31]
[395312353,1764609094420,-759.032236,0.00036,31]
[395312354,1764609094430,-402.835009,0.00036,31]
[395312355,1764609094440,-759.032236,0.00036,31]
[395312356,1764609094451,-402.835009,0.00036,31]
[395312357,1764609094460,-759.032238,0.00036,31]
[395312358,1764609094471,-402.835009,0.00036,31]
[395312359,1764609094480,-402.835017,0.00036,31]
[395312360,1764609094490,-151.0,0.00036,31]
[395312361,1764609094500,-1224.377364,0.00036,31]
[395312362,1764609094510,-151.0,0.00036,31]
[395312363,1764609094520,-1224.377364,0.00036,31]
[395312364,1764609094530,-1224.377364,0.00036,31]
[395312365,1764609094540,-1224.377369,0.00036,31]
[395312366,1764609094550,-151.0,0.00036,31]
[395312367,1764609094560,-151.0,0.00036,31]
[395312368,1764609094570,-206.817501,0.00036,31]
[395312369,1764609094580,-151.0,0.00036,31]
[395312370,1764609094590,-206.817501,0.00036,31]
[395312371,1764609094600,-206.817501,0.00036,31]
[395312372,1764609094611,-206.817492,0.00036,31]
[395312373,1764609094629,-604.645807,0.00036,31]
[395312374,1764609094639,-604.645807,0.00036,31]
[395312375,1764609094649,-604.645807,0.00036,31]
[395312376,1764609094659,-604.645807,0.00036,31]
[395312377,1764609094670,-244.108068,0.00036,31]
[395312378,1764609094680,-244.108068,0.00036,31]
[395312379,1764609094690,-244.108068,0.00036,31]
[395312380,1764609094699,-244.10806,0.00036,31]
[395312381,1764609094709,-151.438434,0.00036,31]
[395312382,1764609094719,-227.99774,0.00036,31]
[395312383,1764609094730,-151.438434,0.00036,31]
[395312384,1764609094740,-227.99774,0.00036,31]
[395312385,1764609094750,-227.99774,0.00036,31]
[395312386,1764609094760,-227.997744,0.00036,31]
[395312387,1764609094770,-151.438434,0.00036,31]
[395312388,1764609094780,-151.438426,0.00036,31]
[395312389,1764609094791,-269.297289,0.00036,31]
[395312390,1764609094800,-269.297289,0.00036,31]
[395312391,1764609094811,-269.297289,0.00036,31]
[395312392,1764609094822,-269.297289,0.00036,31]
[395312393,1764609094831,-781.14106,0.00036088,30]
[395312394,1764609094841,-608.0,0.00036126,14]
[395312395,1764609094851,-1167.67,0.00036164,120]
[395312396,1764609094861,-209.2,0.000362,120]
[395312397,1764609094871,-5000.0,0.00036209,2]
[395312398,1764609094881,-2502.66,0.0003624,2]
[395312399,1764609094891,-152.0,0.00036267,18]
[395312400,1764609094902,-781.14106,0.00036288,30]
[395312401,1764609094912,-2000.0,0.000363,2]
[395312402,1764609094922,-554.48,0.00036301,2]
[395312403,1764609094932,-479.82,0.00036301,2]
[395312404,1764609094942,-479.82,0.00036301,2]
[395312405,1764609094952,-5000.0,0.00036348,2]
[395312406,1764609094962,-214.28835431,0.00036359,120]
[395312407,1764609094972,-213.43630282,0.00036359,120]
[395312408,1764609094982,-216.23573793,0.00036359,120]
[395312409,1764609094992,-214.07197836,0.00036359,120]
[395312410,1764609095002,-2518.3,0.00036386,2]
[395312411,1764609095012,-199.0,0.00036438,8]
[395312412,1764609095023,-781.14106,0.00036488,30]
[395312413,1764609095035,-2511.47,0.00036495,2]
[395312414,1764609095046,-2518.31,0.00036503,2]
[395312415,1764609095057,-1200.0,0.00036535,30]
[395312416,1764609095067,-608.0,0.00036537,14]
[395312417,1764609095078,-2000.0,0.00036572,120]
[395312418,1764609095089,-2511.47,0.00036581,2]
[395312419,1764609095099,-5000.0,0.00036652,2]
[395312420,1764609095109,-517.37161808,0.00036684,2]
[395312421,1764609095121,-781.14106,0.00036688,30]
[395312422,1764609095132,-800.0,0.00036719,13]
[395312423,1764609095142,-200.0,0.00036719,2]
[395312424,1764609095153,-200.0,0.00036719,2]
[395312425,1764609095163,-800.0,0.00036719,13]
[395312426,1764609095174,-800.0,0.00036719,13]
[395312427,1764609095184,-200.0,0.00036719,2]
[395312428,1764609095194,-1098.24,0.0003672,30]
[395312429,1764609095204,-659.1,0.00036724,2]
[395312430,1764609095513,-500.0,0.00036733,30]
[395312431,1764609095524,-2502.67,0.00036738,2]
[395312432,1764609095533,-5000.0,0.00036747,2]
[395312433,1764609095543,-3000.0,0.00036768,14]
[395312434,1764609095554,-1200.0,0.00036809,30]
[395312435,1764609095564,-479.82,0.00036877,2]
[395312436,1764609095574,-479.82,0.00036877,2]
[395312437,1764609095583,-479.82,0.00036877,2]
[395312438,1764609095594,-479.82,0.00036877,2]
[395312439,1764609095604,-479.82,0.00036877,2]
[395312440,1764609095614,-479.82,0.00036877,2]
[395312441,1764609095624,-479.82,0.00036877,2]
[395312442,1764609095637,-479.82,0.00036877,2]
[395312443,1764609095648,-479.82,0.00036877,2]
[395312444,1764609095659,-479.82,0.00036877,2]
[395312445,1764609095669,-479.82,0.00036877,2]
[395312446,1764609095678,-479.82,0.00036877,2]
[395312447,1764609095688,-479.82,0.00036877,2]
[395312448,1764609095699,-479.82,0.00036877,2]
[395312449,1764609095709,-479.82,0.00036877,2]
[395312450,1764609095718,-479.82,0.00036877,2]
[395312451,1764609095728,-479.82,0.00036877,2]
[395312452,1764609095738,-479.82,0.00036877,2]
[395312453,1764609095747,-479.82,0.00036877,2]
[395312454,1764609095757,-479.82,0.00036877,2]
[395312455,1764609095766,-479.82,0.00036877,2]
[395312456,1764609095776,-479.82,0.00036877,2]
[395312457,1764609095786,-479.82,0.00036877,2]
[395312458,1764609095795,-151.0,0.00036885,14]
[395312459,1764609095805,-781.14106,0.00036888,30]
[395312460,1764609095815,-2603.8035,0.00036888,7]
[395312461,1764609095826,-148214.59542591,0.00036888,60]
[395312462,1764609095835,-203.0,0.0003689,30]
[395312463,1764609095845,-13999.98731048,0.0003691,2]
[395312464,1764609095855,-1841.32371478,0.00036929,30]
[395312465,1764609095866,-608.0,0.00036948,14]
[395312466,1764609095878,-152.0,0.00036954,19]
[395312467,1764609095889,-199.0,0.00036986,9]
[395312468,1764609095899,-1167.67,0.00036986,120]
[395312469,1764609095908,-691.97,0.00036986,30]
[395312470,1764609095918,-2506.22,0.00036995,2]
[395312471,1764609095927,-2506.22,0.00036999,2]
[395312472,1764609095938,-50000.0,0.00037,37]
[395312473,1764609095948,-50000.0,0.00037,27]
[395312474,1764609095957,-30218.94967647,0.00037,7]
[395312475,1764609095967,-1001.8179486,0.00037,120]
[395312476,1764609095977,-500.0,0.00037,60]
[395312477,1764609095987,-593.57578102,0.00037,51]
[395312478,1764609095997,-250.0,0.00037,10]
[395312479,1764609096009,-9993.9,0.00037,14]
[395312480,1764609096019,-5000.0,0.00037,5]
[395312481,1764609096029,-42233.39527098,0.00037,7]
[395312482,1764609096042,-164.08046314,0.00037,2]
[395312483,1764609096052,-59472.17531787,0.00037,2]
[395312484,1764609096062,-10509.74,0.00037,2]
[395312485,1764609096072,-4503.08771603,0.00037,15]
[395312486,1764609096082,-623.72387937,0.00037035,30]
[395312487,1764609096092,-781.14106,0.00037088,30]
[395312488,1764609096102,-1213.65754,0.000372,120]
[395312489,1764609096113,-479.82,0.0003726,2]
[395312490,1764609096123,-479.82,0.0003726,2]
[395312491,1764609096138,-479.82,0.0003726,2]
[395312492,1764609096148,-479.82,0.0003726,2]
[395312493,1764609096158,-479.82,0.0003726,2]
[395312494,1764609096168,-479.82,0.0003726,2]
[395312495,1764609096178,-479.82,0.0003726,2]
[395312496,1764609096188,-479.82,0.0003726,2]
[395312497,1764609096199,-479.82,0.0003726,2]
[395312498,1764609096209,-479.82,0.0003726,2]
[395312499,1764609096219,-479.82,0.0003726,2]
[395312500,1764609096229,-479.82,0.0003726,2]
[395312501,1764609096239,-959.64,0.0003726,2]
[395312502,1764609096248,-479.82,0.0003726,2]
[395312503,1764609096258,-479.82,0.0003726,2]
[395312504,1764609096268,-479.82,0.0003726,2]
[395312505,1764609096278,-479.82,0.0003726,2]
[395312506,1764609096288,-479.82,0.0003726,2]
[395312507,1764609096298,-479.82,0.0003726,2]
[395312508,1764609096309,-479.82,0.0003726,2]
[395312509,1764609096318,-479.82,0.0003726,2]
[395312510,1764609096328,-479.82,0.0003726,2]
[395312511,1764609096338,-479.82,0.0003726,2]
[395312512,1764609096348,-479.82,0.0003726,2]
[395312513,1764609096358,-479.82,0.0003726,2]
[395312514,1764609096368,-479.82,0.0003726,2]
[395312515,1764609096377,-479.82,0.0003726,2]
[395312516,1764609096387,-479.82,0.0003726,2]
[395312517,1764609096397,-479.82,0.0003726,2]
[395312518,1764609096407,-781.14106,0.00037288,30]
[395312519,1764609096417,-1000.0,0.00037344,2]
[395312520,1764609096427,-608.0,0.00037359,14]
[395312521,1764609096436,-5000.0,0.00037439,2]
[395312522,1764609096446,-5000.0,0.00037439,2]
[395312523,1764609096455,-5000.0,0.00037439,2]
[395312524,1764609096465,-5000.0,0.00037439,2]
[395312525,1764609096475,-5000.0,0.00037439,2]
[395312526,1764609096484,-1098.24,0.0003744,30]
[395312527,1764609096495,-781.14106,0.00037488,30]
[395312528,1764609096505,-500.0,0.000375,60]
[395312529,1764609096514,-199.0,0.00037534,10]
[395312530,1764609096524,-4292.01802281,0.0003759,2]
[395312531,1764609096533,-152.0,0.00037642,20]
[395312532,1764609096543,-781.14106,0.00037688,30]
[395312533,1764609096553,-960.36,0.00037767,30]
[395312534,1764609096562,-960.36,0.00037767,30]
[395312535,1764609096571,-960.36,0.00037767,30]
[395312536,1764609096581,-960.36,0.00037767,30]
[395312537,1764609096591,-608.0,0.0003777,14]
[395312538,1764609096601,-150.0,0.00037778,30]
[395312539,1764609096611,-2000.0,0.00037797,120]
[395312540,1764609096620,-101830.51711308,0.000378,10]
[395312541,1764609096631,-185.65,0.00037808,60]
[395312542,1764609096641,-1167.67,0.00037808,120]
[395312543,1764609096651,-156.0,0.00037808,120]
[395312544,1764609096661,-185.65,0.00037839,80]
[395312545,1764609096671,-185.65,0.00037869,100]
[395312546,1764609096680,-191.48417983,0.0003787,120]
[395312547,1764609096691,-200.13445265,0.0003788,2]
[395312548,1764609096701,-781.14106,0.00037888,30]